[Event "45th National Sub Junior 2019"]
[Site "Tiruchengode"]
[Date "2019.07.10"]
[Round "2.7"]
[White "Kushagra Mohan"]
[Black "Yukash Ram E"]
[Result "1-0"]
[ECO "B01"]
[WhiteElo "2250"]
[BlackElo "1652"]
[Annotator "NA"]
[PlyCount "107"]
[EventDate "2019.07.09"]
[EventCountry "IND"]
[SourceTitle "playchess.com"]
[Source "ChessBase"]
[SourceQuality "1"]
[TimeControl "5400+30"]

1. e4 {[%emt 0:00:00]} d5 {[%emt 0:00:00]} 2. exd5 {[%emt 0:00:00]} Nf6 {[%emt 0:00:00]} 3. Nf3 {[%emt 0:00:13]} Nxd5 {[%emt 0:00:26]} 4. d4 {[%emt 0:00:25]} e6 {[%emt 0:04:49]} 5. c4 {[%emt 0:00:46]} Nf6 {[%emt 0:00:08]} 6. Nc3 {[%emt 0:00:29]} b6 {[%emt 0:00:09]} 7. Be2 {[%emt 0:01:45]} Bb7 {[%emt 0:00:07]} 8. O-O {[%emt 0:00:34]} Bd6 {[%emt 0:04:12]} 9. Nb5 {[%emt 0:02:21]} O-O {[%emt 0:02:31]} 10. Nxd6 {[%emt 0:01:17]} Qxd6 {[%emt 0:00:23]} 11. Ne5 {[%emt 0:10:59]} c5 {[%emt 0:06:50]} 12. Be3 {[%emt 0:01:29]} Na6 {[%emt 0:02:33]} 13. f4 {[%emt 0:06:35]} cxd4 {[%emt 0:01:00]} 14. Qxd4 {[%emt 0:02:07]} Rfd8 {[%emt 0:02:14]} 15. Qxd6 {[%emt 0:04:28]} Rxd6 {[%emt 0:00:41]} 16. a3 {[%emt 0:00:29]} Ne4 {[%emt 0:06:53]} 17. Rac1 {[%emt 0:05:09]} Nac5 {[%emt 0:06:30]} 18. b4 {[%emt 0:02:41]} Nb3 {[%emt 0:03:32]} 19. Rc2 {[%emt 0:03:35]} Nd4 {[%emt 0:19:56]} 20. Bxd4 {[%emt 0:00:46]} Rxd4 {[%emt 0:00:09]} 21. c5 {[%emt 0:00:35]} Rc8 {[%emt 0:00:10]} 22. c6 {[%emt 0:02:15]} Ba8 {[%emt 0:00:10]} 23. c7 {[%emt 0:02:30]} Bb7 {[%emt 0:01:18]} 24. Nc6 {[%emt 0:50:32]} Rd7 {[%emt 0:01:05]} 25. Rfc1 {[%emt 0:00:00]} Nd6 {[%emt 0:02:28]} 26. Nxa7 {[%emt 0:00:00]} Kf8 {[%emt 0:04:32]} 27. Nxc8 {[%emt 0:00:00]} Nxc8 {[%emt 0:00:10]} 28. Rd1 {[%emt 0:00:00]} Ke7 {[%emt 0:00:36]} 29. Rxd7+ {[%emt 0:00:00]} Kxd7 {[%emt 0:00:06]} 30. Bb5+ {[%emt 0:00:00]} Kd6 {[%emt 0:00:06]} 31. Rd2+ {[%emt 0:00:00]} Bd5 {[%emt 0:00:07]} 32. Ba6 {[%emt 0:00:00]} Kd7 {[%emt 0:00:20]} 33. Bxc8+ {[%emt 0:00:00]} Kxc8 {[%emt 0:00:06]} 34. Rc2 {[%emt 0:00:00]} b5 {[%emt 0:00:20]} 35. Rc5 {[%emt 0:00:00]} Bc4 {[%emt 0:00:05]} 36. a4 {[%emt 0:00:00]} bxa4 {[%emt 0:00:06]} 37. Rxc4 {[%emt 0:00:00]} a3 {[%emt 0:00:04]} 38. Rc2 {[%emt 0:00:00]} a2 {[%emt 0:00:04]} 39. Rxa2 {[%emt 0:00:00]} Kxc7 {[%emt 0:34:34]} 40. Ra7+ {[%emt 0:00:00]} Kb6 {[%emt 0:00:00]} 41. Rxf7 {[%emt 0:00:00]} Kb5 {[%emt 0:00:00]} 42. Rxg7 {[%emt 0:00:00]} Kxb4 {[%emt 0:00:00]} 43. Rxh7 {[%emt 0:00:00]} Kc5 {[%emt 0:00:00]} 44. h4 {[%emt 0:00:00]} Kd5 {[%emt 0:00:00]} 45. h5 {[%emt 0:00:00]} Ke4 {[%emt 0:00:00]} 46. Rf7 {[%emt 0:00:00]} e5 {[%emt 0:00:00]} 47. fxe5 {[%emt 0:00:00]} Ke3 {[%emt 0:00:00]} 48. e6 {[%emt 0:00:00]} Kd2 {[%emt 0:00:00]} 49. e7 {[%emt 0:00:00]} Kc3 {[%emt 0:00:00]} 50. e8=Q {[%emt 0:00:00]} Kc2 {[%emt 0:00:00]} 51. Rd7 {[%emt 0:00:00]} Kb3 {[%emt 0:00:00]} 52. Qc8 {[%emt 0:00:00]} Kb4 {[%emt 0:00:00]} 53. Rb7+ {[%emt 0:00:00]} Ka5 {[%emt 0:00:00]} 54. Qa8# {[%emt 0:00:00]} 1-0

[Event "45th National Sub Junior 2019"]
[Site "Tiruchengode"]
[Date "2019.07.10"]
[Round "2.8"]
[White "Ajay Karthikeyan"]
[Black "Zala Akshar"]
[Result "1-0"]
[ECO "D02"]
[WhiteElo "2216"]
[BlackElo "1638"]
[Annotator "NA"]
[PlyCount "73"]
[EventDate "2019.07.09"]
[EventCountry "IND"]
[SourceTitle "playchess.com"]
[Source "ChessBase"]
[SourceQuality "1"]
[TimeControl "5400+30"]

1. d4 {[%emt 0:00:00]} d5 {[%emt 0:00:19]} 2. Bf4 {[%emt 0:00:00]} c5 {[%emt 0:00:25]} 3. e3 {[%emt 0:00:00]} Nc6 {[%emt 0:00:51]} 4. Nf3 {[%emt 0:00:08]} Nf6 {[%emt 0:01:05]} 5. Nbd2 {[%emt 0:00:02]} Nh5 {[%emt 0:06:31]} 6. Be5 {[%emt 0:06:32]} e6 $11 {[%emt 0:20:24]} 7. c3 {[%emt 0:00:31]} Nf6 {[%emt 0:07:26]} 8. Bd3 {[%emt 0:06:49]} Nd7 {[%emt 0:07:23]} 9. Bf4 {[%emt 0:09:55]} c4 {[%emt 0:12:40]} 10. Bc2 {[%emt 0:00:50]} b5 {[%emt 0:04:02]} 11. e4 {[%emt 0:02:52]} h6 {[%emt 0:03:44]} 12. O-O {[%emt 0:04:44]} Be7 {[%emt 0:01:21]} 13. Re1 {[%emt 0:05:31]} O-O {[%emt 0:01:22]} 14. Nf1 {[%emt 0:04:23]} f5 {[%emt 0:06:28]} 15. exd5 {[%emt 0:02:07]} exd5 {[%emt 0:00:02]} 16. Ne3 {[%emt 0:10:17]} Nb6 {[%emt 0:04:15]} 17. a4 {[%emt 0:04:59]} g5 {[%emt 0:05:35]} 18. Ne5 {[%emt 0:02:49]} Nb8 {[%emt 0:05:05]} 19. Bg3 {[%emt 0:01:35]} f4 {[%emt 0:02:59]} 20. Qh5 {[%emt 0:01:18]} Rf6 {[%emt 0:03:22]} 21. N3g4 {[%emt 0:00:21]} Bxg4 {[%emt 0:02:47]} 22. Nxg4 {[%emt 0:00:15]} fxg3 {[%emt 0:01:16]} 23. Nxf6+ {[%emt 0:00:14]} Bxf6 {[%emt 0:00:15]} 24. Re8+ {[%emt 0:00:01]} Qxe8 {[%emt 0:00:24]} 25. Qxe8+ {[%emt 0:00:02]} Kg7 {[%emt 0:00:09]} 26. Qg6+ {[%emt 0:00:09]} Kf8 {[%emt 0:00:04]} 27. Qxf6+ {[%emt 0:00:03]} Kg8 {[%emt 0:00:07]} 28. Qg6+ {[%emt 0:00:11]} Kf8 {[%emt 0:00:06]} 29. Qxh6+ {[%emt 0:00:01]} Kf7 {[%emt 0:00:07]} 30. Bg6+ {[%emt 0:00:02]} Kf6 {[%emt 0:00:12]} 31. fxg3 {[%emt 0:00:01]} N8d7 {[%emt 0:00:23]} 32. Rf1+ {[%emt 0:00:02]} Ke7 {[%emt 0:00:11]} 33. Qxg5+ {[%emt 0:00:07]} Kd6 {[%emt 0:00:05]} 34. a5 {[%emt 0:00:04]} Na4 {[%emt 0:00:14]} 35. Rf7 {[%emt 0:00:07]} Nxb2 {[%emt 0:00:19]} 36. Qe7+ {[%emt 0:00:02]} Kc6 {[%emt 0:00:05]} 37. Qxd7# {[%emt 0:41:26]} 1-0

[Event "45th National Sub Junior 2019"]
[Site "Tiruchengode"]
[Date "2019.07.10"]
[Round "2.9"]
[White "Colaco Reuben"]
[Black "Nikhil Magizhnan"]
[Result "0-1"]
[ECO "C12"]
[WhiteElo "1663"]
[BlackElo "2164"]
[Annotator "NA"]
[PlyCount "98"]
[EventDate "2019.07.09"]
[EventCountry "IND"]
[SourceTitle "playchess.com"]
[Source "ChessBase"]
[SourceQuality "1"]
[TimeControl "5400+30"]

1. e4 {[%emt 0:00:00]} e6 {[%emt 0:00:00]} 2. d4 {[%emt 0:00:00]} d5 {[%emt 0:00:00]} 3. Nc3 {[%emt 0:00:00]} Nf6 {[%emt 0:00:28]} 4. Bg5 {[%emt 0:00:01]} Bb4 {[%emt 0:00:38]} 5. e5 {[%emt 0:04:24]} h6 {[%emt 0:00:08]} 6. exf6 {[%emt 0:01:58]} hxg5 {[%emt 0:00:14]} 7. fxg7 {[%emt 0:00:14]} Rg8 {[%emt 0:00:18]} 8. h4 {[%emt 0:01:39]} gxh4 {[%emt 0:11:39]} 9. Nf3 {[%emt 0:00:27]} Qf6 {[%emt 0:11:01]} 10. Rxh4 $11 {[%emt 0:02:05]} c5 {[%emt 0:01:11]} 11. Qd2 {[%emt 0:13:27]} Nc6 {[%emt 0:14:47]} 12. Rf4 {[%emt 0:18:18]} Qxg7 {[%emt 0:01:47]} 13. a3 {[%emt 0:01:37]} Bxc3 {[%emt 0:03:35]} 14. bxc3 {[%emt 0:00:08]} c4 {[%emt 0:00:42]} 15. g3 {[%emt 0:05:23]} Bd7 {[%emt 0:01:12]} 16. Qe3 {[%emt 0:02:20]} f6 {[%emt 0:07:38]} 17. Bh3 {[%emt 0:07:45]} O-O-O {[%emt 0:00:52]} 18. O-O-O {[%emt 0:01:15]} Rge8 {[%emt 0:01:22]} 19. Rh4 {[%emt 0:02:35]} a6 {[%emt 0:01:08]} 20. Bg2 {[%emt 0:01:08]} Na7 {[%emt 0:00:50]} 21. Kb2 {[%emt 0:02:04]} Qe7 {[%emt 0:00:40]} 22. Nd2 {[%emt 0:00:52]} Nb5 {[%emt 0:14:50]} 23. Nb1 {[%emt 0:00:11]} Qd6 {[%emt 0:00:07]} 24. Qd2 {[%emt 0:07:16]} Qb6 {[%emt 0:01:22]} 25. Ka2 {[%emt 0:00:09]} Kb8 {[%emt 0:05:18]} 26. Rh6 {[%emt 0:01:35]} Rf8 {[%emt 0:02:40]} 27. f4 {[%emt 0:02:10]} Nd6 {[%emt 0:00:40]} 28. g4 {[%emt 0:00:46]} Rc8 {[%emt 0:00:41]} 29. Rdh1 {[%emt 0:02:25]} Qb5 {[%emt 0:01:11]} 30. Qc1 {[%emt 0:00:33]} Ka7 {[%emt 0:01:08]} 31. Rh7 {[%emt 0:02:55]} Rfd8 {[%emt 0:03:50]} 32. R1h6 {[%emt 0:04:36]} Rc6 {[%emt 0:01:48]} 33. Rxf6 {[%emt 0:01:16]} Rb6 {[%emt 0:00:04]} 34. g5 {[%emt 0:02:28]} Nf5 {[%emt 0:01:04]} 35. Rh3 {[%emt 0:04:21]} Rg8 {[%emt 0:01:57]} 36. Bf1 {[%emt 0:01:36]} Nd6 {[%emt 0:00:28]} 37. Bg2 {[%emt 0:00:16]} Nf5 {[%emt 0:01:21]} 38. Bf1 {[%emt 0:01:15]} Be8 {[%emt 0:02:59]} 39. Be2 {[%emt 0:01:42]} Bg6 {[%emt 0:00:36]} 40. Bg4 {[%emt 0:01:49]} Qa4 {[%emt 0:00:44]} 41. Bd1 {[%emt 0:01:23]} Nd6 {[%emt 0:01:29]} 42. Rh6 {[%emt 0:02:06]} Bf5 {[%emt 0:00:26]} 43. Rh2 {[%emt 0:01:47]} Ne4 {[%emt 0:00:33]} 44. Rfh6 {[%emt 0:00:10]} Qb5 {[%emt 0:00:29]} 45. R6h3 {[%emt 0:00:32]} Bxh3 {[%emt 0:00:19]} 46. Rxh3 {[%emt 0:00:05]} Rh8 {[%emt 0:01:19]} 47. Re3 {[%emt 0:00:40]} Rh1 {[%emt 0:00:16]} 48. a4 {[%emt 0:00:12]} Rxd1 {[%emt 0:00:41]} 49. axb5 {[%emt 0:00:03]} Rxc1 {[%emt 0:00:18]} 0-1

[Event "45th National Sub Junior 2019"]
[Site "Tiruchengode"]
[Date "2019.07.10"]
[Round "2.10"]
[White "Thiyagarajan Tamilselvi"]
[Black "Sanket Chakravarty"]
[Result "0-1"]
[ECO "C45"]
[WhiteElo "1649"]
[BlackElo "2107"]
[Annotator "NA"]
[PlyCount "120"]
[EventDate "2019.07.09"]
[EventCountry "IND"]
[SourceTitle "playchess.com"]
[Source "ChessBase"]
[SourceQuality "1"]
[TimeControl "5400+30"]

1. e4 {[%emt 0:00:00]} c5 {[%emt 0:00:00]} 2. Nf3 {[%emt 0:00:00]} e6 {[%emt 0:00:00]} 3. d4 {[%emt 0:01:24]} cxd4 {[%emt 0:00:00]} 4. Nxd4 {[%emt 0:00:07]} Nc6 {[%emt 0:00:00]} 5. Nxc6 {[%emt 0:02:55]} bxc6 {[%emt 0:00:06]} 6. Nc3 {[%emt 0:00:32]} d5 {[%emt 0:01:43]} 7. exd5 {[%emt 0:00:53]} exd5 {[%emt 0:09:19]} 8. Bd3 {[%emt 0:05:14]} Be7 {[%emt 0:04:17]} 9. O-O {[%emt 0:02:08]} Nf6 {[%emt 0:00:35]} 10. Bf4 {[%emt 0:05:26]} O-O $11 {[%emt 0:01:07]} 11. Ne2 {[%emt 0:02:30]} Bd6 {[%emt 0:15:23]} 12. Qd2 {[%emt 0:05:05]} Be6 {[%emt 0:03:33]} 13. Ng3 {[%emt 0:06:35]} Rb8 {[%emt 0:08:06]} 14. Rab1 {[%emt 0:06:05]} Re8 {[%emt 0:05:13]} 15. Rfe1 {[%emt 0:05:09]} c5 {[%emt 0:08:06]} 16. c3 {[%emt 0:11:55]} d4 {[%emt 0:07:20]} 17. Bxd6 {[%emt 0:13:20]} Qxd6 {[%emt 0:00:17]} 18. b3 {[%emt 0:00:17]} h6 {[%emt 0:09:33]} 19. Nf5 {[%emt 0:04:46]} Bxf5 {[%emt 0:01:29]} 20. Bxf5 {[%emt 0:00:08]} Qd5 {[%emt 0:02:09]} 21. Bd3 {[%emt 0:01:55]} Ng4 {[%emt 0:06:36]} 22. h3 {[%emt 0:06:56]} Ne5 {[%emt 0:00:44]} 23. c4 {[%emt 0:00:38]} Qd8 {[%emt 0:02:58]} 24. Be4 {[%emt 0:00:50]} Nxc4 {[%emt 0:01:18]} 25. Qd3 {[%emt 0:09:38]} Nd6 {[%emt 0:04:39]} 26. Bc6 {[%emt 0:01:57]} Rxe1+ {[%emt 0:01:23]} 27. Rxe1 {[%emt 0:00:02]} Rc8 {[%emt 0:01:26]} 28. Bd5 {[%emt 0:01:28]} Qc7 {[%emt 0:01:02]} 29. Rc1 {[%emt 0:02:07]} Qd7 {[%emt 0:02:22]} 30. a3 {[%emt 0:01:05]} Nb5 {[%emt 0:00:35]} 31. Bf3 {[%emt 0:00:37]} Qe8 {[%emt 0:00:53]} 32. b4 {[%emt 0:01:08]} Nc3 {[%emt 0:01:09]} 33. Kh1 {[%emt 0:01:23]} cxb4 {[%emt 0:00:18]} 34. axb4 {[%emt 0:00:10]} Rd8 {[%emt 0:00:15]} 35. Ra1 {[%emt 0:00:16]} Qe7 {[%emt 0:00:16]} 36. b5 {[%emt 0:00:08]} Qc5 {[%emt 0:00:54]} 37. Bc6 {[%emt 0:00:33]} g6 {[%emt 0:00:49]} 38. Rc1 {[%emt 0:00:52]} Kg7 {[%emt 0:00:16]} 39. g4 {[%emt 0:01:01]} a6 {[%emt 0:00:09]} 40. Kg2 {[%emt 0:01:37]} axb5 {[%emt 0:00:06]} 41. Bxb5 {[%emt 0:00:03]} Qd5+ {[%emt 0:01:06]} 42. Kg3 {[%emt 0:00:54]} Qxb5 {[%emt 0:00:15]} 43. Rxc3 {[%emt 0:00:07]} Qb8+ {[%emt 0:00:04]} 44. f4 {[%emt 0:00:06]} dxc3 {[%emt 0:00:04]} 45. Qxc3+ {[%emt 0:00:02]} Kg8 {[%emt 0:00:08]} 46. Qf6 {[%emt 0:00:13]} g5 {[%emt 0:00:10]} 47. Kf3 {[%emt 0:00:23]} Qxf4+ {[%emt 0:00:07]} 48. Qxf4 {[%emt 0:00:03]} gxf4 {[%emt 0:00:06]} 49. Kxf4 {[%emt 0:00:03]} Kg7 {[%emt 0:00:04]} 50. h4 {[%emt 0:00:07]} Kg6 {[%emt 0:00:04]} 51. Ke5 {[%emt 0:00:05]} f6+ {[%emt 0:00:04]} 52. Ke6 {[%emt 0:00:03]} Rd4 {[%emt 0:00:02]} 53. g5 {[%emt 0:00:05]} fxg5 {[%emt 0:00:03]} 54. hxg5 {[%emt 0:00:04]} hxg5 {[%emt 0:00:07]} 55. Ke5 {[%emt 0:00:02]} Rf4 {[%emt 0:00:04]} 56. Kd5 {[%emt 0:00:04]} g4 {[%emt 0:00:04]} 57. Ke5 {[%emt 0:00:01]} Rf5+ {[%emt 0:00:01]} 58. Ke4 {[%emt 0:00:05]} g3 {[%emt 0:00:04]} 59. Ke3 {[%emt 0:00:02]} g2 {[%emt 0:00:03]} 60. Ke2 {[%emt 0:00:02]} g1=Q {[%emt 0:00:05]} 0-1

[Event "45th National Sub Junior 2019"]
[Site "Tiruchengode"]
[Date "2019.07.10"]
[Round "3.1"]
[White "Pranesh M"]
[Black "Vignesh, N."]
[Result "1-0"]
[ECO "C84"]
[WhiteElo "2343"]
[BlackElo "1882"]
[Annotator "NA"]
[PlyCount "113"]
[EventDate "2019.07.09"]
[EventCountry "IND"]
[SourceTitle "playchess.com"]
[Source "ChessBase"]
[SourceQuality "1"]
[TimeControl "5400+30"]

1. e4 {[%emt 0:00:00]} e5 {[%emt 0:00:00]} 2. Nf3 {[%emt 0:00:00]} Nc6 {[%emt 0:00:00]} 3. Bb5 {[%emt 0:00:00]} a6 {[%emt 0:00:28]} 4. Ba4 {[%emt 0:00:00]} Nf6 {[%emt 0:00:14]} 5. O-O {[%emt 0:00:00]} Be7 {[%emt 0:00:11]} 6. d3 {[%emt 0:00:00]} b5 {[%emt 0:00:51]} 7. Bb3 {[%emt 0:00:00]} d6 {[%emt 0:00:11]} 8. a3 {[%emt 0:00:36]} O-O {[%emt 0:00:55]} 9. h3 {[%emt 0:01:10]} Be6 {[%emt 0:05:58]} 10. Nc3 {[%emt 0:00:23]} Bxb3 {[%emt 0:05:51]} 11. cxb3 {[%emt 0:00:11]} h6 {[%emt 0:09:39]} 12. Qc2 {[%emt 0:02:15]} Qd7 {[%emt 0:04:30]} 13. Be3 {[%emt 0:00:14]} d5 {[%emt 0:14:27]} 14. Nxd5 {[%emt 0:03:21]} Nxd5 {[%emt 0:03:11]} 15. exd5 {[%emt 0:00:03]} Qxd5 {[%emt 0:00:33]} 16. Rac1 {[%emt 0:00:11]} Nd4 {[%emt 0:07:10]} 17. Bxd4 {[%emt 0:00:36]} exd4 {[%emt 0:00:17]} 18. Qxc7 {[%emt 0:01:32]} Bf6 {[%emt 0:00:30]} 19. Nd2 {[%emt 0:05:01]} Qf5 {[%emt 0:07:05]} 20. Ne4 {[%emt 0:03:51]} Be5 {[%emt 0:02:34]} 21. Rc5 {[%emt 0:04:06]} Rfe8 {[%emt 0:09:24]} 22. f4 {[%emt 0:01:59]} Qxe4 {[%emt 0:02:15]} 23. Qxf7+ {[%emt 0:01:11]} Kxf7 {[%emt 0:01:12]} 24. fxe5+ {[%emt 0:00:08]} Ke6 {[%emt 0:01:01]} 25. dxe4 {[%emt 0:00:05]} Rac8 {[%emt 0:00:06]} 26. Rfc1 {[%emt 0:02:28]} Rxc5 {[%emt 0:00:06]} 27. Rxc5 {[%emt 0:00:04]} Rd8 {[%emt 0:00:11]} 28. Kf2 {[%emt 0:00:47]} d3 {[%emt 0:00:05]} 29. Ke1 {[%emt 0:01:45]} d2+ {[%emt 0:00:13]} 30. Kd1 {[%emt 0:00:03]} Rd3 {[%emt 0:00:04]} 31. Rc3 {[%emt 0:08:10]} Rd4 {[%emt 0:00:56]} 32. Rc6+ {[%emt 0:00:08]} Kxe5 {[%emt 0:00:19]} 33. Rxa6 {[%emt 0:00:16]} Rd3 {[%emt 0:05:21]} 34. Ra5 {[%emt 0:06:41]} Rxb3 {[%emt 0:02:07]} 35. a4 {[%emt 0:00:05]} Rg3 {[%emt 0:00:11]} 36. Rxb5+ {[%emt 0:00:38]} Kxe4 {[%emt 0:00:06]} 37. Rb4+ {[%emt 0:00:23]} Kd5 {[%emt 0:00:20]} 38. a5 {[%emt 0:03:33]} Rxg2 {[%emt 0:00:13]} 39. Rg4 {[%emt 0:00:57]} Rh2 {[%emt 0:02:17]} 40. Rxg7 {[%emt 0:00:28]} Rxh3 {[%emt 0:03:44]} 41. Rb7 {[%emt 0:03:00]} Rh1+ {[%emt 0:07:59]} 42. Kxd2 {[%emt 0:00:07]} h5 {[%emt 0:00:04]} 43. Kc3 {[%emt 0:03:33]} h4 {[%emt 0:00:13]} 44. Kb4 {[%emt 0:04:00]} h3 {[%emt 0:00:19]} 45. Kb5 {[%emt 0:02:13]} h2 {[%emt 0:03:56]} 46. Rh7 {[%emt 0:00:12]} Kd6 {[%emt 0:03:28]} 47. a6 {[%emt 0:00:46]} Rd1 {[%emt 0:00:07]} 48. Rxh2 {[%emt 0:00:15]} Kc7 {[%emt 0:00:04]} 49. Rc2+ {[%emt 0:00:25]} Kb8 {[%emt 0:00:08]} 50. Kb6 {[%emt 0:00:04]} Rd8 {[%emt 0:00:12]} 51. b4 {[%emt 0:00:06]} Ka8 {[%emt 0:00:06]} 52. b5 {[%emt 0:00:12]} Rb8+ {[%emt 0:00:06]} 53. Ka5 {[%emt 0:00:04]} Rh8 {[%emt 0:00:08]} 54. Rc5 {[%emt 0:00:11]} Ka7 {[%emt 0:00:38]} 55. b6+ {[%emt 0:00:09]} Ka8 {[%emt 0:00:06]} 56. a7 {[%emt 0:00:20]} Rh1 {[%emt 0:02:10]} 57. Rc8+ {[%emt 0:00:04]} 1-0

[Event "45th National Sub Junior 2019"]
[Site "Tiruchengode"]
[Date "2019.07.10"]
[Round "3.2"]
[White "Rakshith, Srinivasan"]
[Black "Rohith Krishna S"]
[Result "0-1"]
[ECO "C54"]
[WhiteElo "1889"]
[BlackElo "2312"]
[Annotator "NA"]
[PlyCount "172"]
[EventDate "2019.07.09"]
[EventCountry "IND"]
[SourceTitle "playchess.com"]
[Source "ChessBase"]
[SourceQuality "1"]
[TimeControl "5400+30"]

1. e4 {[%emt 0:00:00]} e5 {[%emt 0:00:31]} 2. Nf3 {[%emt 0:00:00]} Nc6 {[%emt 0:00:04]} 3. Bc4 {[%emt 0:00:00]} Bc5 {[%emt 0:00:25]} 4. c3 {[%emt 0:00:00]} Nf6 {[%emt 0:00:05]} 5. d3 {[%emt 0:00:00]} a6 {[%emt 0:00:32]} 6. O-O {[%emt 0:00:02]} O-O {[%emt 0:00:42]} 7. h3 {[%emt 0:00:41]} d6 {[%emt 0:01:05]} 8. Bb3 {[%emt 0:00:13]} Ba7 {[%emt 0:01:12]} 9. Nbd2 {[%emt 0:00:07]} Be6 {[%emt 0:03:43]} 10. Re1 {[%emt 0:02:21]} Re8 {[%emt 0:08:53]} 11. Bxe6 {[%emt 0:07:00]} fxe6 {[%emt 0:00:17]} 12. Nf1 {[%emt 0:00:23]} Qd7 {[%emt 0:01:03]} 13. Ng3 {[%emt 0:06:25]} h6 {[%emt 0:02:47]} 14. Be3 {[%emt 0:07:58]} Bxe3 {[%emt 0:01:13]} 15. fxe3 {[%emt 0:00:11]} d5 {[%emt 0:02:51]} 16. exd5 {[%emt 0:05:24]} exd5 {[%emt 0:00:08]} 17. e4 {[%emt 0:00:12]} dxe4 {[%emt 0:03:19]} 18. dxe4 {[%emt 0:01:28]} Qe6 {[%emt 0:00:46]} 19. Qc2 {[%emt 0:08:16]} Rad8 {[%emt 0:03:28]} 20. b3 {[%emt 0:00:40]} Ne7 {[%emt 0:03:36]} 21. Nh4 {[%emt 0:07:51]} Rd7 {[%emt 0:03:41]} 22. Rad1 {[%emt 0:00:22]} Red8 {[%emt 0:00:10]} 23. Nhf5 {[%emt 0:08:16]} Ng6 {[%emt 0:02:46]} 24. Ne3 {[%emt 0:03:12]} Nf4 {[%emt 0:03:07]} 25. Kh2 {[%emt 0:02:51]} Rd3 {[%emt 0:03:29]} 26. Nd5 {[%emt 0:04:37]} Rxd1 {[%emt 0:00:22]} 27. Nxf6+ {[%emt 0:00:05]} Qxf6 {[%emt 0:00:05]} 28. Rxd1 {[%emt 0:00:04]} g6 {[%emt 0:01:52]} 29. Rxd8+ {[%emt 0:02:59]} Qxd8 {[%emt 0:00:24]} 30. Ne2 {[%emt 0:00:08]} Ne6 {[%emt 0:00:07]} 31. Kg1 {[%emt 0:00:47]} Kg7 {[%emt 0:00:46]} 32. g3 {[%emt 0:01:23]} Ng5 {[%emt 0:02:45]} 33. h4 {[%emt 0:08:01]} Nf3+ {[%emt 0:03:07]} 34. Kf2 {[%emt 0:00:03]} Qf6 {[%emt 0:00:05]} 35. Ke3 {[%emt 0:00:12]} Nh2 {[%emt 0:02:45]} 36. Kd2 {[%emt 0:02:48]} Qf2 {[%emt 0:00:56]} 37. Kc1 {[%emt 0:00:31]} Kf7 {[%emt 0:05:58]} 38. Qd3 {[%emt 0:02:46]} Ke7 {[%emt 0:00:17]} 39. Qc4 {[%emt 0:02:32]} c6 {[%emt 0:01:26]} 40. Qb4+ {[%emt 0:00:53]} Ke8 {[%emt 0:00:06]} 41. Qc4 {[%emt 0:02:16]} Kd7 {[%emt 0:00:31]} 42. Kb2 {[%emt 0:02:18]} b5 {[%emt 0:00:17]} 43. Qd3+ {[%emt 0:00:06]} Ke7 {[%emt 0:00:26]} 44. a4 {[%emt 0:01:26]} Ng4 {[%emt 0:01:12]} 45. Ka3 {[%emt 0:00:58]} Nf6 {[%emt 0:00:34]} 46. Kb4 {[%emt 0:02:09]} Nd7 {[%emt 0:00:39]} 47. c4 {[%emt 0:01:32]} a5+ {[%emt 0:06:15]} 48. Kxa5 {[%emt 0:03:16]} bxa4 {[%emt 0:00:07]} 49. Kb4 {[%emt 0:01:47]} axb3 {[%emt 0:00:06]} 50. Nc3 {[%emt 0:01:53]} Qb6+ {[%emt 0:03:53]} 51. Ka3 {[%emt 0:00:51]} Nc5 {[%emt 0:00:05]} 52. Qd2 {[%emt 0:01:34]} b2 {[%emt 0:03:54]} 53. Qc2 {[%emt 0:00:04]} Qa5+ {[%emt 0:00:35]} 54. Kxb2 {[%emt 0:00:08]} Qb4+ {[%emt 0:00:04]} 55. Kc1 {[%emt 0:01:39]} Qxc4 {[%emt 0:00:19]} 56. Kd2 {[%emt 0:00:39]} Nb3+ {[%emt 0:00:14]} 57. Ke3 {[%emt 0:00:18]} Qc5+ {[%emt 0:02:02]} 58. Kd3 {[%emt 0:00:09]} Qd4+ {[%emt 0:00:13]} 59. Ke2 {[%emt 0:00:07]} Qb6 {[%emt 0:00:59]} 60. Kf1 {[%emt 0:01:07]} Nd4 {[%emt 0:00:42]} 61. Qa2 {[%emt 0:01:07]} Qc5 {[%emt 0:00:56]} 62. Nd1 {[%emt 0:01:30]} Qb5+ {[%emt 0:01:25]} 63. Kf2 {[%emt 0:00:07]} Qd3 {[%emt 0:00:29]} 64. Ne3 {[%emt 0:01:33]} Qxe4 {[%emt 0:00:17]} 65. Qa3+ {[%emt 0:00:22]} Kf7 66. Qa2+ {[%emt 0:01:25]} Kg7 {[%emt 0:00:18]} 67. Nd1 {[%emt 0:00:25]} Qf3+ {[%emt 0:00:21]} 68. Ke1 {[%emt 0:00:05]} Qxg3+ {[%emt 0:00:06]} 69. Qf2 {[%emt 0:00:15]} Qxf2+ {[%emt 0:00:08]} 70. Kxf2 {[%emt 0:00:04]} Kf6 {[%emt 0:00:05]} 71. Ke3 {[%emt 0:00:04]} Kf5 {[%emt 0:00:04]} 72. Nf2 {[%emt 0:00:08]} Ne6 {[%emt 0:00:07]} 73. Nd3 {[%emt 0:00:57]} Nf4 {[%emt 0:00:09]} 74. Ne1 {[%emt 0:00:35]} e4 {[%emt 0:00:08]} 75. Kd4 {[%emt 0:00:14]} Ne2+ {[%emt 0:00:24]} 76. Ke3 {[%emt 0:00:07]} Ng3 {[%emt 0:00:06]} 77. Ng2 {[%emt 0:00:07]} Kg4 {[%emt 0:00:06]} 78. Nf4 {[%emt 0:00:15]} Kf5 {[%emt 0:00:53]} 79. Ng2 {[%emt 0:00:05]} c5 {[%emt 0:00:09]} 80. Ne1 {[%emt 0:00:09]} Ke5 {[%emt 0:00:23]} 81. Ng2 {[%emt 0:00:08]} Nf5+ {[%emt 0:00:18]} 82. Ke2 {[%emt 0:00:05]} c4 {[%emt 0:00:06]} 83. Kd2 {[%emt 0:00:07]} Kd4 {[%emt 0:00:09]} 84. Ne1 {[%emt 0:00:13]} e3+ {[%emt 0:00:08]} 85. Ke2 {[%emt 0:00:04]} Ke4 {[%emt 0:00:04]} 86. Nf3 {[%emt 0:00:05]} Ng3+ {[%emt 0:00:05]} 0-1

[Event "45th National Sub Junior 2019"]
[Site "Tiruchengode"]
[Date "2019.07.10"]
[Round "3.3"]
[White "Pranav Vijay"]
[Black "Banerjee, Ashutosh"]
[Result "1-0"]
[ECO "C11"]
[WhiteElo "2265"]
[BlackElo "1849"]
[Annotator "NA"]
[PlyCount "57"]
[EventDate "2019.07.09"]
[EventCountry "IND"]
[SourceTitle "playchess.com"]
[Source "ChessBase"]
[SourceQuality "1"]
[TimeControl "5400+30"]

1. e4 {[%emt 0:00:00]} e6 {[%emt 0:00:00]} 2. d4 {[%emt 0:00:00]} d5 {[%emt 0:00:00]} 3. Nc3 {[%emt 0:00:00]} Nf6 {[%emt 0:00:00]} 4. e5 {[%emt 0:00:00]} Nfd7 {[%emt 0:00:00]} 5. f4 {[%emt 0:00:00]} c5 {[%emt 0:00:02]} 6. Nf3 {[%emt 0:00:00]} Nc6 {[%emt 0:00:05]} 7. Be3 {[%emt 0:00:00]} a6 {[%emt 0:00:07]} 8. Qd2 {[%emt 0:00:04]} b5 {[%emt 0:00:05]} 9. dxc5 {[%emt 0:00:06]} Bxc5 {[%emt 0:00:06]} 10. Bd3 {[%emt 0:00:07]} Qb6 {[%emt 0:00:12]} 11. Nd1 {[%emt 0:00:37]} b4 {[%emt 0:06:21]} 12. O-O {[%emt 0:02:55]} a5 {[%emt 0:01:02]} 13. Qf2 {[%emt 0:01:23]} Ba6 {[%emt 0:04:56]} 14. Re1 {[%emt 0:03:01]} g6 {[%emt 0:08:08]} 15. Kh1 {[%emt 0:05:53]} a4 {[%emt 0:16:45]} 16. Rc1 {[%emt 0:05:31]} Bxe3 {[%emt 0:02:03]} 17. Nxe3 {[%emt 0:00:13]} Nc5 {[%emt 0:01:05]} 18. Ng4 {[%emt 0:00:38]} Qa7 {[%emt 0:08:26]} 19. Nf6+ {[%emt 0:00:27]} Kd8 {[%emt 0:00:35]} 20. Bxa6 {[%emt 0:00:39]} Nxa6 {[%emt 0:00:10]} 21. Qh4 {[%emt 0:00:36]} Qe7 {[%emt 0:02:32]} 22. c4 {[%emt 0:01:00]} bxc3 {[%emt 0:01:35]} 23. Rxc3 {[%emt 0:00:11]} Rc8 {[%emt 0:02:33]} 24. Rec1 {[%emt 0:00:15]} Na7 {[%emt 0:04:02]} 25. Rxc8+ {[%emt 0:01:07]} Nxc8 {[%emt 0:00:04]} 26. f5 {[%emt 0:00:12]} a3 {[%emt 0:04:09]} 27. bxa3 {[%emt 0:01:46]} gxf5 {[%emt 0:00:26]} 28. Qa4 {[%emt 0:00:16]} Nc7 {[%emt 0:03:25]} 29. Nd4 {[%emt 0:00:08]} 1-0